[Event "1st Bangalore GM-Open-A 2024"]
[Site "Bangalore"]
[Date "2024.01.24"]
[Round "8.33"]
[White "Gonzales, Jayson"]
[Black "Aakash Sharadchandra, Dalvi"]
[Result "1/2-1/2"]
[ECO "A13"]
[WhiteElo "2367"]
[BlackElo "2180"]
[Annotator "RC"]
[PlyCount "107"]
[EventDate "2024.01.20"]
[EventType "swiss"]
[EventCountry "IND"]
[SourceTitle "playchess.com"]
[Source "ChessBase"]
[SourceQuality "1"]
[TimeControl "5400+30"]

1. c4 {[%emt 0:00:38]} e6 {[%emt 0:00:07]} 2. Nf3 {[%emt 0:01:35]} d5 {[%emt 0:00:21]} 3. g3 {[%emt 0:00:37]} dxc4 {[%emt 0:00:49]} 4. Qa4+ {[%emt 0:01:04]} Bd7 {[%emt 0:05:52]} 5. Qxc4 {[%emt 0:00:08]} c5 {[%emt 0:00:09]} 6. Bg2 {[%emt 0:00:57]} Nc6 {[%emt 0:00:18]} 7. O-O {[%emt 0:02:17]} Nf6 {[%emt 0:00:18]} 8. b3 {[%emt 0:12:55]} Rc8 {[%emt 0:02:12]} 9. Bb2 {[%emt 0:00:21]} Be7 {[%emt 0:00:30]} 10. d3 {[%emt 0:03:03]} O-O {[%emt 0:00:49]} 11. Nbd2 {[%emt 0:01:42]} b5 {[%emt 0:08:56]} 12. Qc2 {[%emt 0:08:37]} Nd4 {[%emt 0:07:42]} 13. Qd1 {[%emt 0:02:04]} Qb6 {[%emt 0:00:46]} 14. Ne5 {[%emt 0:03:04]} Rfd8 {[%emt 0:00:37]} 15. e3 {[%emt 0:01:38]} Nf5 {[%emt 0:02:41]} 16. Qe2 {[%emt 0:01:57]} Be8 {[%emt 0:01:20]} 17. Ndf3 {[%emt 0:04:44]} Nd7 {[%emt 0:14:10]} 18. Rac1 {[%emt 0:07:03]} Nxe5 {[%emt 0:01:04]} 19. Nxe5 {[%emt 0:00:35]} Bf6 {[%emt 0:04:30]} 20. Rfd1 {[%emt 0:01:55]} h6 {[%emt 0:00:40]} 21. Rc2 {[%emt 0:11:58]} Qd6 {[%emt 0:08:26]} 22. f4 {[%emt 0:00:14]} Qb6 {[%emt 0:01:51]} 23. Rdc1 {[%emt 0:00:20]} c4 {[%emt 0:10:25]} 24. d4 {[%emt 0:00:16]} Bxe5 {[%emt 0:00:28]} 25. fxe5 {[%emt 0:00:07]} Bd7 {[%emt 0:08:50]} 26. bxc4 {[%emt 0:01:37]} Rxc4 {[%emt 0:01:54]} 27. Rxc4 {[%emt 0:00:12]} bxc4 {[%emt 0:00:02]} 28. Ba3 {[%emt 0:00:32]} Bc6 {[%emt 0:05:18]} 29. Bc5 {[%emt 0:05:22]} Qb7 {[%emt 0:00:06]} 30. Bf1 {[%emt 0:00:51]} Bd5 {[%emt 0:01:45]} 31. Re1 {[%emt 0:01:29]} Be4 {[%emt 0:02:38]} 32. Qxc4 {[%emt 0:00:30]} Rb8 {[%emt 0:00:41]} 33. Qe2 {[%emt 0:00:29]} a5 {[%emt 0:01:27]} 34. Qf2 {[%emt 0:01:13]} g5 {[%emt 0:01:38]} 35. Qd2 {[%emt 0:03:33]} a4 {[%emt 0:00:32]} 36. a3 {[%emt 0:01:05]} Qd5 {[%emt 0:01:16]} 37. Bb4 {[%emt 0:02:49]} Rc8 {[%emt 0:00:34]} 38. Bg2 {[%emt 0:02:51]} Kg7 {[%emt 0:00:20]} 39. Qf2 {[%emt 0:00:46]} Rc7 {[%emt 0:02:24]} 40. Bc5 {[%emt 0:01:18]} h5 {[%emt 0:01:20]} 41. h3 {[%emt 0:07:26]} Rb7 {[%emt 0:00:59]} 42. g4 {[%emt 0:00:53]} hxg4 {[%emt 0:00:02]} 43. hxg4 {[%emt 0:00:01]} Bxg2 {[%emt 0:01:06]} 44. gxf5 {[%emt 0:02:20]} Be4 {[%emt 0:01:35]} 45. Qg3 {[%emt 0:02:48]} Rb2 {[%emt 0:00:25]} 46. Qxg5+ {[%emt 0:00:39]} Kh7 {[%emt 0:00:06]} 47. Qh5+ {[%emt 0:00:37]} Kg8 {[%emt 0:00:04]} 48. Qg5+ {[%emt 0:02:58]} Kh7 {[%emt 0:00:05]} 49. Qh5+ {[%emt 0:00:05]} Kg8 {[%emt 0:00:03]} 50. Qg4+ {[%emt 0:00:58]} Kh7 {[%emt 0:00:07]} 51. Re2 {[%emt 0:00:34]} Rxe2 {[%emt 0:00:10]} 52. Qxe2 {[%emt 0:00:01]} Bxf5 {[%emt 0:00:34]} 53. Qh5+ {[%emt 0:00:18]} Kg8 {[%emt 0:00:10]} 54. Qg5+ {[%emt 0:01:47]} 1/2-1/2

[Event "1st Bangalore GM-Open-A 2024"]
[Site "Bangalore"]
[Date "2024.01.24"]
[Round "8.34"]
[White "Roy Chowdhury, Saptarshi"]
[Black "Dushyant Sharma"]
[Result "1-0"]
[ECO "D02"]
[WhiteElo "2233"]
[BlackElo "2357"]
[Annotator "TA"]
[PlyCount "131"]
[EventDate "2024.01.20"]
[EventType "swiss"]
[EventCountry "IND"]
[SourceTitle "playchess.com"]
[Source "ChessBase"]
[SourceQuality "1"]
[TimeControl "5400+30"]

{[%evp 11,131,27,29,23,29,29,22,0,18,0,32,37,84,65,154,139,370,378,369,359,362,167,155,160,163,147,154,143,146,159,147,100,113,94,112,77,77,75,77,76,87,77,87,88,88,87,87,68,87,87,87,87,87,87,90,87,93,0,82,73,77,79,139,137,137,125,139,138,171,164,171,171,171,164,164,164,171,171,171,0,164,151,140,152,164,164,164,164,164,164,158,144,164,164,164,164,181,179,224,224,535,528,537,512,448,418,1480,1443,1436,1466,1223,1095,1788,1734,29976,29977,29977,29978,29977,29977,29977,12087]} 1. Nf3 {[%emt 0:00:11]} d5 {[%emt 0:00:12]} 2. g3 {[%emt 0:00:19]} Nc6 {[%emt 0:01:02]} 3. d4 {[%emt 0:00:25]} Bf5 {[%emt 0:00:19]} 4. Bg2 {[%emt 0:02:07]} Nb4 {[%emt 0:05:24]} 5. Na3 {[%emt 0:01:17]} e6 {[%emt 0:00:39]} 6. O-O {[%emt 0:01:23]} Nf6 {[%emt 0:00:16]} 7. Bg5 {[%emt 0:05:27] [#] D02: 1 d4 d5 2 Nf3 sidelines, including 2...Nf6 3 g3 and 2...Nf6 3 Bf4.} (7. c3 $5 {[%cal Rc3b4]} Nc6 8. Qb3 $11) 7... h6 $146 {[%emt 0:07:37]} ({Predecessor:} 7... Be7 8. c3 Nc6 9. Nd2 O-O 10. Bxf6 Bxf6 11. e4 dxe4 12. Nxe4 Be7 13. Nc4 Qc8 14. f4 Nb8 {½-½ Puranik,A (2612)-Nogerbek,K (2437) Olympiad-44 Chennai 2022 (11.4)}) 8. Bxf6 {[%emt 0:05:28]} Qxf6 {[%emt 0:00:37]} 9. c3 {[%emt 0:00:29] The position is equal.} (9. Nb5 $5 {[%cal Rb5c7]} Qd8 10. c4 $11) 9... Nc6 {[%emt 0:01:45]} 10. Qb3 {[%emt 0:01:20]} Rb8 {[%emt 0:04:55]} 11. Nd2 {[%emt 0:03:22]} Qg6 {[%emt 0:05:30]} (11... Bxa3 $14 12. Qxa3 Qe7) 12. Rfe1 {[%emt 0:04:06]} b5 {[%emt 0:11:47] [#]} 13. e4 $1 $16 {[%emt 0:03:36]} ({And not} 13. Nxb5 Bc2 14. Bxd5 (14. Nxc7+ $2 Kd7 $19) 14... exd5 15. Qxd5 Rb7 $15) 13... dxe4 {[%emt 0:00:18]} (13... Na5 $16 {is a better defense.} 14. exf5 Nxb3 15. fxg6 Nxa1) 14. Nxb5 $18 {[%emt 0:04:36]} a6 {[%emt 0:17:40]} 15. Qc4 {[%emt 0:02:19]} Kd7 {[%emt 0:00:13][%cal Be8d7,Bd7c8,Bc8b7,Bb7c6][%mdl 32]} 16. d5 {[%emt 0:04:33]} (16. Bxe4 $2 {loses.} Bxe4 17. Nxe4 axb5 $19) (16. Nxc7 $142 Kxc7 17. Nxe4) 16... exd5 {[%emt 0:00:44]} 17. Qxd5+ {[%emt 0:00:04]} Kc8 {[%emt 0:00:11] [#]} 18. Qxc6 {[%emt 0:04:49][%mdl 576] Remove Defender, Decoy} Qxc6 {[%emt 0:00:27]} 19. Na7+ {[%emt 0:00:04] A dynamic duo of knights.} Kb7 {[%emt 0:00:15]} 20. Nxc6 {[%emt 0:00:04]} Kxc6 {[%emt 0:00:05]} 21. b3 {[%emt 0:00:03]} (21. Bxe4+ $142 Bxe4 22. Rxe4) 21... Re8 {[%emt 0:06:55]} 22. Nxe4 {[%emt 0:05:34]} Bxe4 {[%emt 0:00:19]} 23. Rxe4 {[%emt 0:01:06]} Rxe4 {[%emt 0:00:11]} 24. Bxe4+ $16 {[%emt 0:00:03][%mdl 4096] Endgame KRB-KRB} Kb6 {[%emt 0:00:41]} 25. Bd5 {[%emt 0:00:13]} Ba3 {[%emt 0:02:46]} 26. Bxf7 {[%emt 0:01:53]} Bb2 {[%emt 0:01:58]} 27. Re1 {[%emt 0:00:10]} Bxc3 {[%emt 0:00:14]} 28. Re6+ {[%emt 0:00:21]} Kb7 {[%emt 0:00:32]} 29. Bh5 {[%emt 0:07:40] White is more active.} Rf8 {[%emt 0:04:48] Repels Bf3+} 30. Kg2 {[%emt 0:01:29]} Rf6 {[%emt 0:01:30]} 31. Bf3+ {[%emt 0:00:12]} Ka7 {[%emt 0:02:15]} 32. Re4 {[%emt 0:01:49]} Kb6 {[%emt 0:02:38]} 33. Rc4 {[%emt 0:00:43]} Be1 {[%emt 0:04:25]} 34. Re4 {[%emt 0:06:48]} Bc3 {[%emt 0:00:14]} 35. Be2 {[%emt 0:01:56]} a5 {[%emt 0:03:57]} 36. h4 {[%emt 0:03:17][%cal Bh2h4,Bh4h5][%mdl 32]} c5 {[%emt 0:06:00]} (36... Rd6 $142) 37. f4 {[%emt 0:01:42]} Kc6 {[%emt 0:01:57]} 38. h5 {[%emt 0:05:55]} Rd6 {[%emt 0:02:19]} 39. Kf3 {[%emt 0:01:26]} Rd2 {[%emt 0:01:18]} 40. a4 {[%emt 0:00:06]} Kd7 {[%emt 0:01:09]} 41. Bb5+ {[%emt 0:01:56]} Kd6 {[%emt 0:00:10]} 42. Bc4 {[%emt 0:00:13]} Kd7 {[%emt 0:00:39]} 43. Kg4 {[%emt 0:00:34]} Rh2 {[%emt 0:02:13]} 44. Bb5+ {[%emt 0:02:41]} Kd6 {[%emt 0:00:13]} 45. Bc4 {[%emt 0:01:03]} Kd7 $1 {[%emt 0:00:15]} 46. Bf7 {[%emt 0:00:05]} Rg2 {[%emt 0:01:30]} 47. Be6+ {[%emt 0:01:28]} Kd6 {[%emt 0:00:12]} 48. Bc4 {[%emt 0:00:05]} Rg1 {[%emt 0:00:49]} 49. Re3 {[%emt 0:03:00]} Bd4 {[%emt 0:00:33]} 50. Re6+ {[%emt 0:00:05]} Kd7 {[%emt 0:00:03]} 51. Kf3 {[%emt 0:00:41]} Rh1 {[%emt 0:00:51]} 52. Ra6 {[%emt 0:00:11]} Bc3 {[%emt 0:00:56]} 53. g4 {[%emt 0:00:26]} Rg1 {[%emt 0:01:04]} 54. Ke4 {[%emt 0:00:26]} Ke7 {[%emt 0:00:51]} 55. Kf5 {[%emt 0:01:44]} Rg2 $2 {[%emt 0:00:23]} (55... Rd1 56. Re6+ Kd8) 56. Ra7+ $18 {[%emt 0:00:50]} Kd6 {[%emt 0:00:45]} 57. Bb5 {[%emt 0:00:22][%csl Gb5][%cal Ra7d7]} c4 {[%emt 0:00:15]} 58. bxc4 {[%emt 0:00:26][%cal Bb3c4,Bc4c5,Bc5c6,Bc6c7][%mdl 32] Hoping for Rd7+.} ({Weaker is} 58. Bxc4 Rf2 59. Ke4 Rg2 $18) 58... Rf2 {[%emt 0:00:16]} (58... Kc5 $142 59. Rc7+ Kb6 60. Rc6+ Kb7) 59. Rd7+ {[%emt 0:01:28]} Kc5 {[%emt 0:00:01]} 60. Rd5+ {[%emt 0:01:11]} Kb4 {[%emt 0:00:11]} 61. c5 {[%emt 0:00:51]} Bd2 {[%emt 0:00:06]} 62. c6 {[%emt 0:00:21] Threatening mate with c7.} Rxf4+ {[%emt 0:00:40]} 63. Ke5 {[%emt 0:00:01] White mates.} Rf2 {[%emt 0:00:31]} 64. Rd4+ {[%emt 0:00:08]} Kc3 {[%emt 0:01:24]} 65. c7 {[%emt 0:00:13]} Rf8 {[%emt 0:00:11]} 66. Rc4+ {[%emt 0:00:20] Weighted Error Value: White=0.17 (very precise) /Black=0.27 (precise)} (66. Rd8 $142 Bf4+ 67. Ke4 Bxc7 68. Rxf8 Bh2 69. Rg8 Bd6 70. Rxg7 Bf8 71. Rg6) 1-0

[Event "1st Bangalore GM-Open-A 2024"]
[Site "Bangalore"]
[Date "2024.01.24"]
[Round "8.35"]
[White "Moksh Amit Doshi"]
[Black "Sarwat, Walaa"]
[Result "1-0"]
[ECO "D90"]
[WhiteElo "2355"]
[BlackElo "2175"]
[Annotator "RC"]
[PlyCount "66"]
[EventDate "2024.01.20"]
[EventType "swiss"]
[EventCountry "IND"]
[SourceTitle "playchess.com"]
[Source "ChessBase"]
[SourceQuality "1"]
[TimeControl "5400+30"]

1. d4 {[%emt 0:02:16]} d5 {[%emt 0:00:19]} 2. Nf3 {[%emt 0:00:05]} Nf6 {[%emt 0:01:05]} 3. c4 {[%emt 0:00:05]} c6 {[%emt 0:01:24]} 4. Nc3 {[%emt 0:00:11]} g6 {[%emt 0:00:36]} 5. cxd5 {[%emt 0:00:16]} cxd5 {[%emt 0:00:08]} 6. Bf4 {[%emt 0:00:08]} Bg7 {[%emt 0:01:58]} 7. e3 {[%emt 0:01:04]} O-O {[%emt 0:00:53]} 8. h3 {[%emt 0:00:12]} Nc6 {[%emt 0:00:38]} 9. Be2 {[%emt 0:00:10]} Bf5 {[%emt 0:01:58]} 10. O-O {[%emt 0:00:43]} Ne4 {[%emt 0:01:36]} 11. Rc1 {[%emt 0:00:10]} Rc8 {[%emt 0:01:42]} 12. Qb3 {[%emt 0:00:18]} Na5 {[%emt 0:02:00]} 13. Qb4 {[%emt 0:00:10]} a6 {[%emt 0:03:09]} 14. Nxe4 {[%emt 0:14:32]} dxe4 {[%emt 0:00:22]} 15. Rxc8 {[%emt 0:02:15]} Bxc8 {[%emt 0:00:24]} 16. Ng5 {[%emt 0:00:50]} Nc6 {[%emt 0:02:46]} 17. Qc5 {[%emt 0:01:34]} e5 {[%emt 0:10:11]} 18. dxe5 {[%emt 0:00:56]} Nxe5 {[%emt 0:02:49]} 19. Nxe4 {[%emt 0:07:23]} Nd3 {[%emt 0:01:17]} 20. Bxd3 {[%emt 0:01:15]} Qxd3 {[%emt 0:00:30]} 21. Nd6 {[%emt 0:00:11]} Be6 {[%emt 0:01:36]} 22. b3 {[%emt 0:00:35]} Qd2 {[%emt 0:06:09]} 23. Be5 {[%emt 0:05:47]} f6 {[%emt 0:05:24]} 24. Bd4 {[%emt 0:03:33]} Qxa2 {[%emt 0:01:16]} 25. b4 {[%emt 0:00:53]} Bd5 {[%emt 0:14:11]} 26. Nc8 {[%emt 0:02:15]} Kh8 {[%emt 0:00:43]} 27. Rc1 {[%emt 0:10:02]} Qb3 {[%emt 0:16:21]} 28. Qd6 {[%emt 0:05:38]} Bc4 {[%emt 0:03:55]} 29. Nb6 {[%emt 0:02:34]} Bg8 {[%emt 0:05:15]} 30. Nd7 {[%emt 0:01:01]} Re8 {[%emt 0:04:52]} 31. Nxf6 {[%emt 0:01:56]} Ra8 {[%emt 0:03:36]} 32. Rc7 {[%emt 0:01:01]} Qe6 {[%emt 0:03:51]} 33. Ne8 {[%emt 0:00:55]} Qa2 {[%emt 0:01:21]} 1-0

[Event "1st Bangalore GM-Open-A 2024"]
[Site "Bangalore"]
[Date "2024.01.24"]
[Round "8.36"]
[White "Fronda, Jan Jodilyn"]
[Black "Manish Anto Cristiano F"]
[Result "0-1"]
[ECO "B22"]
[WhiteElo "2151"]
[BlackElo "2349"]
[Annotator "RC"]
[PlyCount "116"]
[EventDate "2024.01.20"]
[EventType "swiss"]
[EventCountry "IND"]
[SourceTitle "playchess.com"]
[Source "ChessBase"]
[SourceQuality "1"]
[TimeControl "5400+30"]

1. e4 {[%emt 0:02:01]} c5 {[%emt 0:00:12]} 2. c3 {[%emt 0:00:28]} d5 {[%emt 0:00:32]} 3. exd5 {[%emt 0:00:15]} Qxd5 {[%emt 0:00:07]} 4. Nf3 {[%emt 0:00:05]} Nc6 {[%emt 0:00:24]} 5. d4 {[%emt 0:01:22]} Nf6 {[%emt 0:01:26]} 6. Be3 {[%emt 0:01:19]} e6 {[%emt 0:01:06]} 7. Na3 {[%emt 0:01:14]} cxd4 {[%emt 0:01:19]} 8. Nb5 {[%emt 0:00:15]} Qd8 {[%emt 0:02:25]} 9. Nbxd4 {[%emt 0:01:27]} Nxd4 {[%emt 0:02:59]} 10. Qxd4 {[%emt 0:01:05]} Be7 {[%emt 0:00:36]} 11. Bb5+ {[%emt 0:02:43]} Bd7 {[%emt 0:00:20]} 12. Bxd7+ {[%emt 0:00:32]} Qxd7 {[%emt 0:00:20]} 13. Qxd7+ {[%emt 0:00:29]} Nxd7 {[%emt 0:00:20]} 14. O-O-O {[%emt 0:00:12]} Nf6 {[%emt 0:01:14]} 15. Kb1 {[%emt 0:02:54]} O-O {[%emt 0:01:01]} 16. Rd3 {[%emt 0:02:50]} Nd5 {[%emt 0:05:23]} 17. Bc1 {[%emt 0:06:52]} Rfc8 {[%emt 0:03:45]} 18. Nd4 {[%emt 0:02:11]} a6 {[%emt 0:02:32]} 19. f4 {[%emt 0:02:42]} Nb6 {[%emt 0:07:03]} 20. b3 {[%emt 0:03:31]} Bf6 {[%emt 0:06:36]} 21. c4 {[%emt 0:02:36]} Rab8 {[%emt 0:07:11]} 22. Ba3 {[%emt 0:02:00]} Ra8 {[%emt 0:02:51]} 23. Bb2 {[%emt 0:02:47]} h5 {[%emt 0:02:13]} 24. Rhd1 {[%emt 0:02:30]} Rd8 {[%emt 0:01:21]} 25. Bc3 {[%emt 0:06:34]} Nc8 {[%emt 0:03:15]} 26. Ne2 {[%emt 0:01:13]} Rxd3 {[%emt 0:06:16]} 27. Rxd3 {[%emt 0:00:05]} Be7 {[%emt 0:07:43]} 28. Ng3 {[%emt 0:04:05]} g6 {[%emt 0:01:49]} 29. Ne4 {[%emt 0:00:45]} Kf8 {[%emt 0:00:48]} 30. Rd7 {[%emt 0:01:39]} b6 {[%emt 0:03:31]} 31. Bf6 {[%emt 0:04:40]} Ke8 {[%emt 0:05:27]} 32. Rb7 {[%emt 0:11:19]} Ra7 {[%emt 0:02:04]} 33. Rxa7 {[%emt 0:02:05]} Nxa7 {[%emt 0:00:09]} 34. Bxe7 {[%emt 0:01:03]} Kxe7 {[%emt 0:00:07]} 35. Kc2 {[%emt 0:00:27]} Nc6 {[%emt 0:01:12]} 36. Kc3 {[%emt 0:00:09]} e5 {[%emt 0:02:11]} 37. fxe5 {[%emt 0:01:07]} Nxe5 {[%emt 0:00:08]} 38. h3 {[%emt 0:02:45]} f5 {[%emt 0:03:43]} 39. Nd2 {[%emt 0:03:14]} g5 {[%emt 0:00:55]} 40. Kd4 {[%emt 0:02:20]} Ke6 {[%emt 0:02:53]} 41. Ke3 {[%emt 0:00:57]} Ng6 {[%emt 0:04:25]} 42. Nf3 {[%emt 0:03:20]} Kf6 {[%emt 0:01:18]} 43. Kd4 {[%emt 0:04:57]} Nf4 {[%emt 0:00:57]} 44. Ne1 {[%emt 0:00:06]} g4 {[%emt 0:03:19]} 45. hxg4 {[%emt 0:02:38]} fxg4 {[%emt 0:00:11]} 46. Ke4 {[%emt 0:00:16]} Ne2 {[%emt 0:03:35]} 47. Kd5 {[%emt 0:07:47]} h4 {[%emt 0:00:15]} 48. Ke4 {[%emt 0:01:03]} Kg5 {[%emt 0:00:30]} 49. a3 {[%emt 0:01:18]} Nf4 {[%emt 0:00:31]} 50. b4 {[%emt 0:01:18]} Nxg2 {[%emt 0:00:27]} 51. Nd3 {[%emt 0:00:12]} h3 {[%emt 0:00:23]} 52. c5 {[%emt 0:00:50]} bxc5 {[%emt 0:00:42]} 53. bxc5 {[%emt 0:00:01]} Nf4 {[%emt 0:02:44]} 54. Nf2 {[%emt 0:03:26]} Ne6 {[%emt 0:00:41]} 55. c6 {[%emt 0:00:21]} Kh4 {[%emt 0:00:45]} 56. Ke5 {[%emt 0:01:35]} Nc7 {[%emt 0:00:07]} 57. Nd3 {[%emt 0:00:24]} h2 {[%emt 0:00:23]} 58. Nf2 {[%emt 0:00:04]} g3 {[%emt 0:00:06]} 0-1

[Event "1st Bangalore GM-Open-A 2024"]
[Site "Bangalore"]
[Date "2024.01.24"]
[Round "8.37"]
[White "Ram Aravind L N"]
[Black "Sathvik Adiga"]
[Result "1/2-1/2"]
[ECO "C78"]
[WhiteElo "2332"]
[BlackElo "2142"]
[Annotator "RC"]
[PlyCount "81"]
[EventDate "2024.01.20"]
[EventType "swiss"]
[EventCountry "IND"]
[SourceTitle "playchess.com"]
[Source "ChessBase"]
[SourceQuality "1"]
[TimeControl "5400+30"]

1. e4 {[%emt 0:01:52]} e5 {[%emt 0:00:09]} 2. Nf3 {[%emt 0:00:05]} Nc6 {[%emt 0:00:02]} 3. Bb5 {[%emt 0:00:07]} a6 {[%emt 0:00:03]} 4. Ba4 {[%emt 0:00:05]} Nf6 {[%emt 0:00:05]} 5. d3 {[%emt 0:00:05]} b5 {[%emt 0:00:13]} 6. Bb3 {[%emt 0:00:06]} Bc5 {[%emt 0:01:30]} 7. O-O {[%emt 0:01:28]} O-O {[%emt 0:00:33]} 8. c3 {[%emt 0:01:30]} d6 {[%emt 0:01:25]} 9. h3 {[%emt 0:01:01]} Ne7 {[%emt 0:00:52]} 10. Re1 {[%emt 0:02:00]} Ng6 {[%emt 0:00:08]} 11. Nbd2 {[%emt 0:06:54]} h6 {[%emt 0:00:55]} 12. Nf1 {[%emt 0:00:32]} Re8 {[%emt 0:00:11]} 13. Ng3 {[%emt 0:00:40]} Bb7 {[%emt 0:00:23]} 14. d4 {[%emt 0:06:53]} Bb6 {[%emt 0:05:34]} 15. Bc2 {[%emt 0:03:02]} c6 {[%emt 0:10:32]} 16. Nf5 {[%emt 0:05:32]} Qc7 {[%emt 0:13:45]} 17. Be3 {[%emt 0:12:59]} c5 {[%emt 0:36:06]} 18. Qc1 {[%emt 0:13:34]} Nh5 {[%emt 0:09:57]} 19. Bxh6 {[%emt 0:17:05]} gxh6 {[%emt 0:00:18]} 20. Qxh6 {[%emt 0:00:12]} Ngf4 {[%emt 0:00:09]} 21. d5 {[%emt 0:03:56]} f6 {[%emt 0:07:56]} 22. g3 {[%emt 0:00:43]} Kf7 {[%emt 0:00:43]} 23. Qh7+ {[%emt 0:12:22]} Kf8 {[%emt 0:00:07]} 24. Qh6+ {[%emt 0:00:55]} Kg8 {[%emt 0:02:40]} 25. gxf4 {[%emt 0:00:28]} Qh7 {[%emt 0:00:14]} 26. Qxh7+ {[%emt 0:00:44]} Kxh7 {[%emt 0:00:02]} 27. Nxd6 {[%emt 0:00:48]} Rg8+ {[%emt 0:00:05]} 28. Kh1 {[%emt 0:01:35]} Bc8 {[%emt 0:00:15]} 29. Nxc8 {[%emt 0:00:22]} Raxc8 {[%emt 0:00:05]} 30. fxe5 {[%emt 0:00:36]} fxe5 {[%emt 0:00:14]} 31. Nxe5 {[%emt 0:00:15]} Rcf8 {[%emt 0:00:06]} 32. Ng4 {[%emt 0:00:11]} c4 {[%emt 0:00:25]} 33. e5+ {[%emt 0:01:03]} Kh8 {[%emt 0:00:05]} 34. e6 {[%emt 0:04:18]} Rf3 {[%emt 0:01:35]} 35. Kh2 {[%emt 0:00:01]} Nf4 {[%emt 0:00:20]} 36. Bd1 {[%emt 0:01:59]} Rxh3+ {[%emt 0:00:42]} 37. Kg1 {[%emt 0:00:00]} Rg3+ {[%emt 0:00:19]} 38. Kf1 {[%emt 0:00:27]} Rh3 {[%emt 0:00:10]} 39. Kg1 {[%emt 0:00:39]} Rg3+ {[%emt 0:01:34]} 40. Kf1 {[%emt 0:01:59]} Rh3 {[%emt 0:00:25]} 41. Kg1 {[%emt 0:00:31]} 1/2-1/2

[Event "1st Bangalore GM-Open-A 2024"]
[Site "Bangalore"]
[Date "2024.01.24"]
[Round "8.38"]
[White "Nguyen, Duc Hoa"]
[Black "Dhyey Agarwal"]
[Result "1/2-1/2"]
[ECO "C45"]
[WhiteElo "2322"]
[BlackElo "2087"]
[Annotator "RC"]
[PlyCount "128"]
[EventDate "2024.01.20"]
[EventType "swiss"]
[EventCountry "IND"]
[SourceTitle "playchess.com"]
[Source "ChessBase"]
[SourceQuality "1"]
[TimeControl "5400+30"]

1. e4 {[%emt 0:01:14]} e5 {[%emt 0:00:06]} 2. Nf3 {[%emt 0:00:05]} Nc6 {[%emt 0:00:02]} 3. d4 {[%emt 0:00:07]} exd4 {[%emt 0:00:05]} 4. Nxd4 {[%emt 0:00:04]} Bc5 {[%emt 0:00:23]} 5. Nb3 {[%emt 0:00:16]} Bb6 {[%emt 0:00:22]} 6. Nc3 {[%emt 0:00:08]} Nf6 {[%emt 0:01:17]} 7. Bg5 {[%emt 0:00:32]} h6 {[%emt 0:01:53]} 8. Bh4 {[%emt 0:00:07]} d6 {[%emt 0:00:20]} 9. Bb5 {[%emt 0:02:14]} O-O {[%emt 0:06:30]} 10. Qe2 {[%emt 0:01:41]} Nd4 {[%emt 0:05:21]} 11. Nxd4 {[%emt 0:00:13]} Bxd4 {[%emt 0:00:02]} 12. O-O-O {[%emt 0:01:21]} Bxc3 {[%emt 0:04:42]} 13. bxc3 {[%emt 0:00:05]} Qe7 {[%emt 0:00:12]} 14. Rhe1 {[%emt 0:01:20]} Qe5 {[%emt 0:02:43]} 15. Kb2 {[%emt 0:05:24]} Nxe4 {[%emt 0:19:48]} 16. Qc4 {[%emt 0:03:30]} Qh5 {[%emt 0:06:56]} 17. Be7 {[%emt 0:22:43]} Be6 {[%emt 0:02:27]} 18. Qf1 {[%emt 0:02:48]} Nc5 {[%emt 0:04:51]} 19. Bxf8 {[%emt 0:10:33]} a6 {[%emt 0:05:35]} 20. Qe2 {[%emt 0:07:06]} Bg4 {[%emt 0:09:57]} 21. f3 {[%emt 0:04:27]} axb5 {[%emt 0:01:11]} 22. fxg4 {[%emt 0:00:04]} Na4+ {[%emt 0:00:09]} 23. Kc1 {[%emt 0:00:11]} Qc5 {[%emt 0:02:18]} 24. Bxg7 {[%emt 0:00:32]} Kxg7 {[%emt 0:04:04]} 25. Qe3 {[%emt 0:00:53]} Qa3+ {[%emt 0:01:22]} 26. Kd2 {[%emt 0:00:05]} Nb2 {[%emt 0:01:01]} 27. Qd4+ {[%emt 0:01:58]} Kg8 {[%emt 0:00:01]} 28. Ra1 {[%emt 0:03:11]} Nc4+ {[%emt 0:00:27]} 29. Ke2 {[%emt 0:00:11]} Ne5 {[%emt 0:01:19]} 30. Qb4 {[%emt 0:02:17]} Qa6 {[%emt 0:00:30]} 31. Kf1 {[%emt 0:01:31]} Nc4 {[%emt 0:00:26]} 32. Re2 {[%emt 0:02:32]} Qc6 {[%emt 0:02:03]} 33. Rb1 {[%emt 0:03:11]} Na3 {[%emt 0:01:53]} 34. Rbe1 {[%emt 0:01:14]} Ra4 {[%emt 0:00:40]} 35. Qb2 {[%emt 0:00:19]} Rf4+ {[%emt 0:02:32]} 36. Kg1 {[%emt 0:00:09]} Qc5+ {[%emt 0:00:41]} 37. Kh1 {[%emt 0:00:05]} Nc4 {[%emt 0:00:57]} 38. Qc1 {[%emt 0:00:14]} Rf6 {[%emt 0:00:18]} 39. Re7 {[%emt 0:02:43]} Ne5 {[%emt 0:02:08]} 40. Re8+ {[%emt 0:00:42]} Kh7 {[%emt 0:00:21]} 41. h3 {[%emt 0:01:49]} Qc6 {[%emt 0:01:02]} 42. R8xe5 {[%emt 0:05:50]} dxe5 {[%emt 0:00:18]} 43. Qe3 {[%emt 0:00:05]} Qd6 {[%emt 0:03:25]} 44. Qe4+ {[%emt 0:01:08]} Kg7 {[%emt 0:01:13]} 45. Qxb7 {[%emt 0:04:36]} c6 {[%emt 0:00:27]} 46. Qb6 {[%emt 0:03:34]} Qd2 {[%emt 0:00:29]} 47. Qg1 {[%emt 0:00:07]} Qxc3 {[%emt 0:00:37]} 48. Re2 {[%emt 0:00:05]} Rf4 {[%emt 0:01:15]} 49. Qc1 {[%emt 0:01:31]} f6 {[%emt 0:00:46]} 50. Kh2 {[%emt 0:00:27]} Rd4 {[%emt 0:00:43]} 51. Rf2 {[%emt 0:00:24]} Rd6 {[%emt 0:01:38]} 52. Rf3 {[%emt 0:00:48]} Qc5 {[%emt 0:00:20]} 53. Rf5 {[%emt 0:01:10]} Qc3 {[%emt 0:01:44]} 54. Qg1 {[%emt 0:00:45]} Rd7 {[%emt 0:00:42]} 55. Qf2 {[%emt 0:00:49]} e4 {[%emt 0:01:21]} 56. Rc5 {[%emt 0:00:24]} e3 {[%emt 0:01:51]} 57. Qf5 {[%emt 0:00:03]} Qd4 {[%emt 0:00:24]} 58. Rxc6 {[%emt 0:00:47]} Re7 {[%emt 0:00:51]} 59. Re6 {[%emt 0:00:36]} Rxe6 {[%emt 0:00:50]} 60. Qxe6 {[%emt 0:00:02]} Qf4+ {[%emt 0:00:23]} 61. Kg1 {[%emt 0:00:38]} Qf2+ {[%emt 0:00:28]} 62. Kh2 {[%emt 0:00:12]} Qf4+ {[%emt 0:00:54]} 63. Kg1 {[%emt 0:00:01]} Qf2+ {[%emt 0:00:24]} 64. Kh2 {[%emt 0:00:01]} Qf4+ {[%emt 0:01:34]} 1/2-1/2